[Event "Titled Tuesday Blitz February 21 Early 2023"]
[White "Belozerov, Andrei"]
[Black "Fernandez Siles, Luis"]
[WhiteFideId "4120213"]
[BlackFideId "2209420"]
[WhiteElo "2461"]
[BlackElo "2218"]
[Result "1-0"]
[Round "03"]
[TimeControl "180+2"]
[Date "2023.02.21"]
[WhiteClock "0:01:05"]
[BlackClock "0:01:17"]

1. e4 {[%clk 0:03:00]}  c5 {[%clk 0:02:59]} 2. Nf3 {[%clk 0:03:00]}  Nc6 {[%clk 0:03:00]} 3. Bb5 {[%clk 0:02:59]}  g6 {[%clk 0:03:00]} 4. O-O {[%clk 0:02:58]}  Bg7 {[%clk 0:03:00]} 5. Re1 {[%clk 0:02:58]}  Nf6 {[%clk 0:03:00]} 6. e5 {[%clk 0:02:59]}  Nd5 {[%clk 0:03:00]} 7. Nc3 {[%clk 0:02:59]}  Nc7 {[%clk 0:03:00]} 8. Bxc6 {[%clk 0:02:57]}  dxc6 {[%clk 0:03:01]} 9. h3 {[%clk 0:02:56]}  O-O {[%clk 0:03:00]} 10. d3 {[%clk 0:02:56]}  b6 {[%clk 0:02:56]} 11. a4 {[%clk 0:02:55]}  a5 {[%clk 0:02:56]} 12. Bg5 {[%clk 0:02:26]}  f6 {[%clk 0:02:50]} 13. Bf4 {[%clk 0:02:07]}  Nd5 {[%clk 0:02:37]} 14. Bg3 {[%clk 0:02:05]}  Nxc3 {[%clk 0:02:35]} 15. bxc3 {[%clk 0:02:03]}  b5 {[%clk 0:02:09]} 16. Qd2 {[%clk 0:01:54]}  Bf5 {[%clk 0:01:51]} 17. Qe3 {[%clk 0:01:49]}  c4 {[%clk 0:01:48]} 18. Nd4 {[%clk 0:01:43]}  cxd3 {[%clk 0:01:36]} 19. cxd3 {[%clk 0:01:36]}  fxe5 {[%clk 0:01:33]} 20. Nxc6 {[%clk 0:01:30]}  Qxd3 {[%clk 0:01:29]} 21. Nxe7+ {[%clk 0:01:27]}  Kh8 {[%clk 0:01:29]} 22. Nxf5 {[%clk 0:01:24]}  Qxf5 {[%clk 0:01:29]} 23. axb5 {[%clk 0:01:24]}  a4 {[%clk 0:01:19]} 24. c4 {[%clk 0:01:22]}  a3 {[%clk 0:01:19]} 25. Rxa3 {[%clk 0:01:19]}  Rxa3 {[%clk 0:01:18]} 26. Qxa3 {[%clk 0:01:18]}  Qc2 {[%clk 0:01:18]} 27. c5 {[%clk 0:01:10]}  e4 {[%clk 0:01:17]} 28. c6 {[%clk 0:01:05]}  Bd4 {[%clk 0:01:17]} 29. Qxf8# {[%clk 0:01:05]} 1-0


[Site "https://www.chess.com"]

[Event "Titled Tuesday Blitz February 21 Early 2023"]
[White "Jimenez Jimenez, Leandro"]
[Black "Santos Flores, Alberto"]
[WhiteFideId "6415253"]
[BlackFideId "3601234"]
[WhiteElo "2146"]
[BlackElo "2164"]
[Result "0-1"]
[Round "03"]
[TimeControl "180+2"]
[Date "2023.02.21"]
[WhiteClock "0:00:04"]
[BlackClock "0:00:56"]

1. d4 {[%clk 0:03:00]}  d5 {[%clk 0:02:59]} 2. c4 {[%clk 0:03:00]}  c6 {[%clk 0:02:59]} 3. cxd5 {[%clk 0:03:00]}  cxd5 {[%clk 0:02:59]} 4. Nc3 {[%clk 0:03:01]}  Nf6 {[%clk 0:02:59]} 5. Nf3 {[%clk 0:03:02]}  Nc6 {[%clk 0:02:58]} 6. Bf4 {[%clk 0:03:03]}  a6 {[%clk 0:02:58]} 7. Rc1 {[%clk 0:03:02]}  Ne4 {[%clk 0:02:58]} 8. e3 {[%clk 0:03:01]}  Bf5 {[%clk 0:02:55]} 9. Qb3 {[%clk 0:02:58]}  Nxc3 {[%clk 0:02:55]} 10. bxc3 {[%clk 0:02:47]}  Na5 {[%clk 0:02:49]} 11. Qd1 {[%clk 0:02:34]}  e6 {[%clk 0:02:46]} 12. Be2 {[%clk 0:02:30]}  Be7 {[%clk 0:02:37]} 13. O-O {[%clk 0:02:30]}  O-O {[%clk 0:02:37]} 14. c4 {[%clk 0:02:30]}  Ba3 {[%clk 0:02:29]} 15. Rc3 {[%clk 0:02:28]}  Bb2 {[%clk 0:02:28]} 16. Rb3 {[%clk 0:02:16]}  Nxb3 {[%clk 0:02:22]} 17. Qxb3 {[%clk 0:02:15]}  dxc4 {[%clk 0:02:22]} 18. Qxb2 {[%clk 0:02:15]}  b5 {[%clk 0:02:20]} 19. Ne5 {[%clk 0:02:06]}  f6 {[%clk 0:02:17]} 20. Nf3 {[%clk 0:01:40]}  Qd7 {[%clk 0:02:13]} 21. Rc1 {[%clk 0:01:39]}  Rfc8 {[%clk 0:02:10]} 22. a4 {[%clk 0:01:27]}  Be4 {[%clk 0:01:53]} 23. Nd2 {[%clk 0:01:23]}  Bc6 {[%clk 0:01:52]} 24. Nb1 {[%clk 0:01:15]}  Qb7 {[%clk 0:01:51]} 25. f3 {[%clk 0:01:12]}  h5 {[%clk 0:01:24]} 26. Bd6 {[%clk 0:01:10]}  h4 {[%clk 0:01:22]} 27. h3 {[%clk 0:01:10]}  Qd7 {[%clk 0:01:18]} 28. Bc5 {[%clk 0:01:09]}  Re8 {[%clk 0:01:12]} 29. Nc3 {[%clk 0:01:06]}  e5 {[%clk 0:01:11]} 30. axb5 {[%clk 0:01:02]}  axb5 {[%clk 0:01:10]} 31. Rd1 {[%clk 0:00:29]}  exd4 {[%clk 0:01:05]} 32. Rxd4 {[%clk 0:00:23]}  Qf5 {[%clk 0:01:05]} 33. Rd6 {[%clk 0:00:20]}  Qxc5 {[%clk 0:01:04]} 34. Rd1 {[%clk 0:00:01]}  b4 {[%clk 0:01:01]} 35. Kh1 {[%clk 0:00:02]}  bxc3 {[%clk 0:01:00]} 36. Qxc3 {[%clk 0:00:03]}  Bb5 {[%clk 0:00:57]} 37. Bxc4+ {[%clk 0:00:04]}  Qxc4 {[%clk 0:00:56]} 0-1


[Site "https://www.chess.com"]

[Event "Titled Tuesday Blitz February 21 Early 2023"]
[White "Chakravarthi Reddy, M"]
[Black "Lopez Del Alamo, Antonio"]
[WhiteFideId "25009532"]
[BlackFideId "2227339"]
[WhiteElo "2279"]
[BlackElo "2280"]
[Result "1-0"]
[Round "03"]
[TimeControl "180+2"]
[Date "2023.02.21"]
[WhiteClock "0:00:22"]
[BlackClock "0:01:26"]

1. c4 {[%clk 0:03:00]}  Nf6 {[%clk 0:02:59]} 2. Nc3 {[%clk 0:03:00]}  g6 {[%clk 0:02:59]} 3. d4 {[%clk 0:03:00]}  Bg7 {[%clk 0:02:59]} 4. e4 {[%clk 0:03:00]}  d6 {[%clk 0:02:59]} 5. Nf3 {[%clk 0:03:00]}  O-O {[%clk 0:02:59]} 6. Be2 {[%clk 0:03:01]}  e5 {[%clk 0:02:59]} 7. O-O {[%clk 0:03:01]}  Nc6 {[%clk 0:02:59]} 8. d5 {[%clk 0:03:01]}  Ne7 {[%clk 0:03:00]} 9. b4 {[%clk 0:03:01]}  Nh5 {[%clk 0:02:58]} 10. Be3 {[%clk 0:02:52]}  Nf4 {[%clk 0:02:56]} 11. Re1 {[%clk 0:02:51]}  Nxe2+ {[%clk 0:02:52]} 12. Qxe2 {[%clk 0:02:45]}  h6 {[%clk 0:02:53]} 13. c5 {[%clk 0:02:43]}  f5 {[%clk 0:02:53]} 14. cxd6 {[%clk 0:02:43]}  cxd6 {[%clk 0:02:53]} 15. Rac1 {[%clk 0:02:41]}  f4 {[%clk 0:02:52]} 16. Bd2 {[%clk 0:02:37]}  a6 {[%clk 0:02:49]} 17. a4 {[%clk 0:02:04]}  g5 {[%clk 0:02:48]} 18. Red1 {[%clk 0:01:53]}  Ng6 {[%clk 0:02:47]} 19. b5 {[%clk 0:01:51]}  a5 {[%clk 0:02:41]} 20. b6 {[%clk 0:01:46]}  Bd7 {[%clk 0:02:41]} 21. Nb5 {[%clk 0:01:45]}  Bxb5 {[%clk 0:02:40]} 22. Qxb5 {[%clk 0:01:44]}  g4 {[%clk 0:02:39]} 23. Ne1 {[%clk 0:01:44]}  Rf7 {[%clk 0:02:38]} 24. Rc2 {[%clk 0:01:36]}  Bf8 {[%clk 0:02:37]} 25. Rdc1 {[%clk 0:01:36]}  Qg5 {[%clk 0:02:23]} 26. Rc7 {[%clk 0:01:31]}  Nh4 {[%clk 0:02:16]} 27. Rxf7 {[%clk 0:01:29]}  Kxf7 {[%clk 0:02:17]} 28. Qd7+ {[%clk 0:01:17]}  Be7 {[%clk 0:02:17]} 29. Qe6+ {[%clk 0:01:16]}  Ke8 {[%clk 0:02:17]} 30. Bxa5 {[%clk 0:00:54]}  g3 {[%clk 0:02:11]} 31. Bd2 {[%clk 0:00:36]}  gxf2+ {[%clk 0:01:53]} 32. Kxf2 {[%clk 0:00:37]}  Ng6 {[%clk 0:01:51]} 33. Qg8+ {[%clk 0:00:33]}  Bf8 {[%clk 0:01:50]} 34. Rc7 {[%clk 0:00:29]}  Ne7 {[%clk 0:01:43]} 35. Qxg5 {[%clk 0:00:27]}  hxg5 {[%clk 0:01:43]} 36. a5 {[%clk 0:00:27]}  Nc8 {[%clk 0:01:33]} 37. Rxb7 {[%clk 0:00:27]}  Be7 {[%clk 0:01:32]} 38. h3 {[%clk 0:00:25]}  Bd8 {[%clk 0:01:31]} 39. Nd3 {[%clk 0:00:25]}  Ra6 {[%clk 0:01:27]} 40. Nb2 {[%clk 0:00:20]}  Nxb6 {[%clk 0:01:24]} 41. axb6 {[%clk 0:00:20]}  Rxb6 {[%clk 0:01:25]} 42. Rxb6 {[%clk 0:00:19]}  Bxb6+ {[%clk 0:01:26]} 43. Kf3 {[%clk 0:00:20]}  Kf7 {[%clk 0:01:26]} 44. Kg4 {[%clk 0:00:20]}  Kg6 {[%clk 0:01:26]} 45. Nc4 {[%clk 0:00:21]}  Bc5 {[%clk 0:01:26]} 46. Ba5 {[%clk 0:00:22]} 1-0


[Site "https://www.chess.com"]

[Event "Titled Tuesday Blitz February 21 Early 2023"]
[White "Clawitter, Craig"]
[Black "Aarav Dengla"]
[WhiteFideId "2023105"]
[BlackFideId "45059756"]
[WhiteElo "2050"]
[BlackElo "2343"]
[Result "0-1"]
[Round "03"]
[TimeControl "180+2"]
[Date "2023.02.21"]
[WhiteClock "0:00:06"]
[BlackClock "0:00:06"]

1. e4 {[%clk 0:03:00]}  c5 {[%clk 0:02:59]} 2. Nf3 {[%clk 0:03:00]}  d6 {[%clk 0:02:59]} 3. d4 {[%clk 0:03:00]}  cxd4 {[%clk 0:03:00]} 4. Nxd4 {[%clk 0:03:01]}  Nf6 {[%clk 0:02:59]} 5. Nc3 {[%clk 0:03:02]}  a6 {[%clk 0:02:59]} 6. Be3 {[%clk 0:03:02]}  e5 {[%clk 0:02:59]} 7. Nb3 {[%clk 0:03:03]}  Be7 {[%clk 0:02:59]} 8. f3 {[%clk 0:03:03]}  Be6 {[%clk 0:02:59]} 9. Qd2 {[%clk 0:03:03]}  O-O {[%clk 0:02:59]} 10. O-O-O {[%clk 0:03:03]}  Nbd7 {[%clk 0:02:59]} 11. g4 {[%clk 0:03:02]}  b5 {[%clk 0:02:59]} 12. Rg1 {[%clk 0:03:03]}  b4 {[%clk 0:02:41]} 13. Nd5 {[%clk 0:03:00]}  Bxd5 {[%clk 0:02:39]} 14. exd5 {[%clk 0:03:01]}  a5 {[%clk 0:02:39]} 15. g5 {[%clk 0:02:54]}  Nh5 {[%clk 0:02:38]} 16. Kb1 {[%clk 0:02:46]}  a4 {[%clk 0:02:36]} 17. Nc1 {[%clk 0:02:47]}  Qa5 {[%clk 0:02:36]} 18. Rg4 {[%clk 0:02:36]}  Rfb8 {[%clk 0:02:20]} 19. Nd3 {[%clk 0:02:28]}  Qxd5 {[%clk 0:02:12]} 20. Rxb4 {[%clk 0:01:57]}  Qc6 {[%clk 0:01:38]} 21. Bg2 {[%clk 0:01:27]}  d5 {[%clk 0:01:33]} 22. f4 {[%clk 0:01:03]}  Bxb4 {[%clk 0:00:29]} 23. Nxb4 {[%clk 0:01:03]}  Qb5 {[%clk 0:00:29]} 24. a3 {[%clk 0:00:51]}  d4 {[%clk 0:00:24]} 25. Bxa8 {[%clk 0:00:49]}  Rxa8 {[%clk 0:00:14]} 26. fxe5 {[%clk 0:00:20]}  dxe3 {[%clk 0:00:10]} 27. Qxd7 {[%clk 0:00:20]}  Qxd7 {[%clk 0:00:11]} 28. Rxd7 {[%clk 0:00:20]}  e2 {[%clk 0:00:12]} 29. Nd3 {[%clk 0:00:20]}  Nf4 {[%clk 0:00:12]} 30. Ne1 {[%clk 0:00:20]}  h6 {[%clk 0:00:11]} 31. h4 {[%clk 0:00:19]}  Re8 {[%clk 0:00:11]} 32. Rd4 {[%clk 0:00:12]}  Ng6 {[%clk 0:00:10]} 33. Re4 {[%clk 0:00:11]}  Rxe5 {[%clk 0:00:08]} 34. Rxe5 {[%clk 0:00:11]}  Nxe5 {[%clk 0:00:09]} 35. gxh6 {[%clk 0:00:11]}  gxh6 {[%clk 0:00:08]} 36. Kc1 {[%clk 0:00:12]}  Kg7 {[%clk 0:00:08]} 37. b3 {[%clk 0:00:12]}  Kg6 {[%clk 0:00:06]} 38. bxa4 {[%clk 0:00:10]}  Nc4 {[%clk 0:00:06]} 39. a5 {[%clk 0:00:09]}  Nxa5 {[%clk 0:00:06]} 40. Kd2 {[%clk 0:00:10]}  Nc4+ {[%clk 0:00:06]} 41. Kxe2 {[%clk 0:00:10]}  Nxa3 {[%clk 0:00:07]} 42. Kf3 {[%clk 0:00:10]}  Kh5 {[%clk 0:00:07]} 43. Kg3 {[%clk 0:00:07]}  f6 {[%clk 0:00:08]} 44. Nf3 {[%clk 0:00:07]}  Nxc2 {[%clk 0:00:08]} 45. Kf4 {[%clk 0:00:07]}  Ne1 {[%clk 0:00:07]} 46. Nxe1 {[%clk 0:00:06]}  Kxh4 {[%clk 0:00:07]} 47. Kf5 {[%clk 0:00:07]}  Kg3 {[%clk 0:00:06]} 48. Kxf6 {[%clk 0:00:06]}  h5 {[%clk 0:00:06]} 0-1


[Site "https://www.chess.com"]

[Event "Titled Tuesday Blitz February 21 Early 2023"]
[White "Bashirli, Saadat"]
[Black "Lerch, Philipp"]
[WhiteFideId "13429990"]
[BlackFideId "4654129"]
[WhiteElo "1571"]
[BlackElo "2305"]
[Result "0-1"]
[Round "03"]
[TimeControl "180+2"]
[Date "2023.02.21"]
[WhiteClock "0:00:10"]
[BlackClock "0:00:06"]

1. e4 {[%clk 0:03:00]}  c6 {[%clk 0:02:59]} 2. d4 {[%clk 0:02:59]}  d5 {[%clk 0:02:58]} 3. exd5 {[%clk 0:03:00]}  cxd5 {[%clk 0:02:58]} 4. Bd3 {[%clk 0:03:00]}  Nc6 {[%clk 0:02:56]} 5. c3 {[%clk 0:03:00]}  Qc7 {[%clk 0:02:55]} 6. Ne2 {[%clk 0:02:59]}  Bg4 {[%clk 0:02:54]} 7. O-O {[%clk 0:02:58]}  e6 {[%clk 0:02:52]} 8. Nd2 {[%clk 0:02:52]}  Bd6 {[%clk 0:02:51]} 9. h3 {[%clk 0:02:51]}  Bh5 {[%clk 0:02:51]} 10. Qa4 {[%clk 0:02:30]}  Ne7 {[%clk 0:02:31]} 11. Re1 {[%clk 0:02:15]}  Bg6 {[%clk 0:02:10]} 12. Bxg6 {[%clk 0:02:06]}  hxg6 {[%clk 0:02:11]} 13. Nf3 {[%clk 0:02:04]}  f6 {[%clk 0:01:38]} 14. Bd2 {[%clk 0:01:53]}  g5 {[%clk 0:01:35]} 15. Nc1 {[%clk 0:01:51]}  Kf7 {[%clk 0:01:22]} 16. Nd3 {[%clk 0:01:45]}  a6 {[%clk 0:01:08]} 17. Qc2 {[%clk 0:01:28]}  b5 {[%clk 0:01:04]} 18. Bxg5 {[%clk 0:01:18]}  Nf5 {[%clk 0:00:44]} 19. Be3 {[%clk 0:01:09]}  Rag8 {[%clk 0:00:41]} 20. Re2 {[%clk 0:01:00]}  g5 {[%clk 0:00:41]} 21. Rae1 {[%clk 0:00:53]}  g4 {[%clk 0:00:36]} 22. hxg4 {[%clk 0:00:53]}  Rxg4 {[%clk 0:00:37]} 23. Bd2 {[%clk 0:00:45]}  Rhg8 {[%clk 0:00:27]} 24. Rxe6 {[%clk 0:00:21]}  Rxg2+ {[%clk 0:00:27]} 25. Kf1 {[%clk 0:00:21]}  Nh4 {[%clk 0:00:18]} 26. Rxf6+ {[%clk 0:00:15]}  Kxf6 {[%clk 0:00:16]} 27. Nxh4 {[%clk 0:00:11]}  Rg1+ {[%clk 0:00:14]} 28. Ke2 {[%clk 0:00:11]}  Nxd4+ {[%clk 0:00:11]} 29. cxd4 {[%clk 0:00:10]}  Qxc2 {[%clk 0:00:11]} 30. Rxg1 {[%clk 0:00:09]}  Rxg1 {[%clk 0:00:10]} 31. Nf3 {[%clk 0:00:10]}  Qd1+ {[%clk 0:00:10]} 32. Ke3 {[%clk 0:00:10]}  Rg4 {[%clk 0:00:09]} 33. Nde5 {[%clk 0:00:09]}  Re4+ {[%clk 0:00:08]} 34. Kd3 {[%clk 0:00:09]}  Qb1+ {[%clk 0:00:08]} 35. Kc3 {[%clk 0:00:09]}  b4+ {[%clk 0:00:06]} 36. Kb3 {[%clk 0:00:10]}  Qd1# {[%clk 0:00:06]} 0-1


[Site "https://www.chess.com"]

[Event "Titled Tuesday Blitz February 21 Early 2023"]
[White "Shtompel, Yuriy"]
[Black "Michalski, Olaf"]
[WhiteFideId "14168278"]
[BlackFideId "1106740"]
[WhiteElo "1938"]
[BlackElo "2273"]
[Result "0-1"]
[Round "03"]
[TimeControl "180+2"]
[Date "2023.02.21"]
[WhiteClock "0:02:42"]
[BlackClock "0:02:37"]

1. e4 {[%clk 0:03:00]}  c5 {[%clk 0:02:55]} 2. Nf3 {[%clk 0:02:59]}  a6 {[%clk 0:02:55]} 3. c4 {[%clk 0:02:57]}  Nc6 {[%clk 0:02:55]} 4. Nc3 {[%clk 0:02:56]}  e5 {[%clk 0:02:53]} 5. g3 {[%clk 0:02:51]}  d6 {[%clk 0:02:49]} 6. Bg2 {[%clk 0:02:50]}  g6 {[%clk 0:02:42]} 7. O-O {[%clk 0:02:49]}  Bg7 {[%clk 0:02:42]} 8. d3 {[%clk 0:02:49]}  Nge7 {[%clk 0:02:41]} 9. h3 {[%clk 0:02:46]}  O-O {[%clk 0:02:39]} 10. Bf4 {[%clk 0:02:42]}  exf4 {[%clk 0:02:37]} 0-1


[Site "https://www.chess.com"]

[Event "Titled Tuesday Blitz February 21 Early 2023"]
[White "Smith, Garrett L"]
[Black "Tarigan, Gilbert Elroy"]
[WhiteFideId "2024829"]
[BlackFideId "7108133"]
[WhiteElo "2047"]
[BlackElo "2384"]
[Result "0-1"]
[Round "03"]
[TimeControl "180+2"]
[Date "2023.02.21"]
[WhiteClock "0:00:29"]
[BlackClock "0:00:57"]

1. e4 {[%clk 0:03:00]}  c5 {[%clk 0:02:58]} 2. a3 {[%clk 0:03:00]}  Nf6 {[%clk 0:02:57]} 3. e5 {[%clk 0:02:59]}  Nd5 {[%clk 0:02:57]} 4. Bc4 {[%clk 0:03:00]}  Nb6 {[%clk 0:02:57]} 5. Ba2 {[%clk 0:03:00]}  Nc6 {[%clk 0:02:56]} 6. Nf3 {[%clk 0:03:00]}  e6 {[%clk 0:02:54]} 7. O-O {[%clk 0:02:58]}  d6 {[%clk 0:02:50]} 8. exd6 {[%clk 0:02:55]}  Bxd6 {[%clk 0:02:51]} 9. Nc3 {[%clk 0:02:56]}  O-O {[%clk 0:02:51]} 10. Ne4 {[%clk 0:02:54]}  Be7 {[%clk 0:02:49]} 11. d3 {[%clk 0:02:53]}  Nd5 {[%clk 0:02:48]} 12. Re1 {[%clk 0:02:50]}  b6 {[%clk 0:02:48]} 13. Ng3 {[%clk 0:02:28]}  Bb7 {[%clk 0:02:48]} 14. Bd2 {[%clk 0:02:28]}  Bf6 {[%clk 0:02:46]} 15. c3 {[%clk 0:02:25]}  g6 {[%clk 0:02:44]} 16. Qe2 {[%clk 0:02:24]}  Bg7 {[%clk 0:02:43]} 17. Rad1 {[%clk 0:02:23]}  Qc7 {[%clk 0:02:40]} 18. Bg5 {[%clk 0:02:19]}  h6 {[%clk 0:02:34]} 19. Bc1 {[%clk 0:02:17]}  Rad8 {[%clk 0:02:33]} 20. Ne4 {[%clk 0:02:15]}  Kh7 {[%clk 0:02:31]} 21. g3 {[%clk 0:02:12]}  Nce7 {[%clk 0:02:20]} 22. Bb1 {[%clk 0:01:43]}  Qc6 {[%clk 0:02:19]} 23. d4 {[%clk 0:01:32]}  cxd4 {[%clk 0:01:58]} 24. Nxd4 {[%clk 0:01:31]}  Qc8 {[%clk 0:01:57]} 25. Nb5 {[%clk 0:01:27]}  Qb8 {[%clk 0:01:52]} 26. c4 {[%clk 0:01:24]}  Nf6 {[%clk 0:01:48]} 27. Nxf6+ {[%clk 0:01:10]}  Bxf6 {[%clk 0:01:49]} 28. Bf4 {[%clk 0:01:07]}  Qa8 {[%clk 0:01:44]} 29. Nd6 {[%clk 0:00:58]}  Bf3 {[%clk 0:01:42]} 30. Qe3 {[%clk 0:00:56]}  Bxd1 {[%clk 0:01:33]} 31. Rxd1 {[%clk 0:00:52]}  Bg7 {[%clk 0:01:30]} 32. Re1 {[%clk 0:00:48]}  Nf5 {[%clk 0:01:26]} 33. Nxf5 {[%clk 0:00:47]}  exf5 {[%clk 0:01:27]} 34. b4 {[%clk 0:00:42]}  Rfe8 {[%clk 0:01:24]} 35. Qc1 {[%clk 0:00:40]}  Rxe1+ {[%clk 0:01:21]} 36. Qxe1 {[%clk 0:00:41]}  Qf3 {[%clk 0:01:21]} 37. Bc2 {[%clk 0:00:37]}  Qxa3 {[%clk 0:01:09]} 38. Qe7 {[%clk 0:00:37]}  Qa1+ {[%clk 0:01:04]} 39. Kg2 {[%clk 0:00:37]}  Qf6 {[%clk 0:01:05]} 40. Qxa7 {[%clk 0:00:35]}  Qc6+ {[%clk 0:01:05]} 41. Kh3 {[%clk 0:00:29]}  Qxc4 {[%clk 0:00:57]} 0-1


[Site "https://www.chess.com"]

[Event "Titled Tuesday Blitz February 21 Early 2023"]
[White "Ashraf, Artin"]
[Black "Gerbelli Neto, Eduardo"]
[WhiteFideId "22514805"]
[BlackFideId "2103281"]
[WhiteElo "2314"]
[BlackElo "2114"]
[Result "0-1"]
[Round "03"]
[TimeControl "180+2"]
[Date "2023.02.21"]
[WhiteClock "0:00:05"]
[BlackClock "0:01:49"]

1. Nf3 {[%clk 0:00:16]}  Nf6 {[%clk 0:02:58]} 2. g3 {[%clk 0:00:15]}  d5 {[%clk 0:02:58]} 3. Bg2 {[%clk 0:00:15]}  g6 {[%clk 0:02:59]} 4. O-O {[%clk 0:00:15]}  Bg7 {[%clk 0:03:00]} 5. c4 {[%clk 0:00:15]}  O-O {[%clk 0:03:01]} 6. cxd5 {[%clk 0:00:14]}  Nxd5 {[%clk 0:03:01]} 7. Nc3 {[%clk 0:00:14]}  Nxc3 {[%clk 0:03:02]} 8. bxc3 {[%clk 0:00:14]}  c5 {[%clk 0:03:02]} 9. Rb1 {[%clk 0:00:14]}  Nc6 {[%clk 0:03:02]} 10. Qa4 {[%clk 0:00:03]}  Qc7 {[%clk 0:02:50]} 11. Ba3 {[%clk 0:00:03]}  Bd7 {[%clk 0:02:26]} 12. Qc2 {[%clk 0:00:03]}  b6 {[%clk 0:02:24]} 13. Rfd1 {[%clk 0:00:04]}  Rad8 {[%clk 0:02:24]} 14. d4 {[%clk 0:00:05]}  Na5 {[%clk 0:02:01]} 15. Nd2 {[%clk 0:00:04]}  Rfe8 {[%clk 0:01:54]} 16. dxc5 {[%clk 0:00:04]}  bxc5 {[%clk 0:01:53]} 17. Ne4 {[%clk 0:00:04]}  Bf5 {[%clk 0:01:49]} 18. h3 {[%clk 0:00:05]}  Nc4 {[%clk 0:01:49]} 0-1


[Site "https://www.chess.com"]

[Event "Titled Tuesday Blitz February 21 Early 2023"]
[White "Orlov, Georgi"]
[Black "Tsyhanchuk, Stanislav"]
[WhiteFideId "2011271"]
[BlackFideId "13505130"]
[WhiteElo "2453"]
[BlackElo "2273"]
[Result "1-0"]
[Round "03"]
[TimeControl "180+2"]
[Date "2023.02.21"]
[WhiteClock "0:01:00"]
[BlackClock "0:00:01"]

1. e4 {[%clk 0:03:00]}  c5 {[%clk 0:02:58]} 2. Nf3 {[%clk 0:03:00]}  d6 {[%clk 0:02:58]} 3. d4 {[%clk 0:03:00]}  cxd4 {[%clk 0:02:59]} 4. Nxd4 {[%clk 0:03:00]}  Nf6 {[%clk 0:03:00]} 5. Nc3 {[%clk 0:03:00]}  a6 {[%clk 0:03:00]} 6. h3 {[%clk 0:02:59]}  e5 {[%clk 0:03:00]} 7. Nb3 {[%clk 0:02:55]}  Be7 {[%clk 0:02:59]} 8. g4 {[%clk 0:02:55]}  Be6 {[%clk 0:02:59]} 9. Bg2 {[%clk 0:02:54]}  b5 {[%clk 0:02:57]} 10. g5 {[%clk 0:02:52]}  Nfd7 {[%clk 0:02:57]} 11. h4 {[%clk 0:02:51]}  Nc6 {[%clk 0:02:49]} 12. Be3 {[%clk 0:02:46]}  Nb6 {[%clk 0:02:35]} 13. Nd5 {[%clk 0:02:41]}  Bxd5 {[%clk 0:02:31]} 14. exd5 {[%clk 0:02:40]}  Nb8 {[%clk 0:02:31]} 15. Na5 {[%clk 0:02:28]}  N8d7 {[%clk 0:01:58]} 16. Nc6 {[%clk 0:02:24]}  Qc7 {[%clk 0:01:58]} 17. b3 {[%clk 0:02:22]}  Bd8 {[%clk 0:01:54]} 18. Qg4 {[%clk 0:02:14]}  Nb8 {[%clk 0:01:33]} 19. O-O-O {[%clk 0:02:00]}  Nxc6 {[%clk 0:01:22]} 20. dxc6 {[%clk 0:01:45]}  O-O {[%clk 0:00:55]} 21. h5 {[%clk 0:01:44]}  d5 {[%clk 0:00:53]} 22. Bxb6 {[%clk 0:01:35]}  Qxb6 {[%clk 0:00:52]} 23. Bxd5 {[%clk 0:01:33]}  Be7 {[%clk 0:00:49]} 24. g6 {[%clk 0:01:33]}  Ba3+ {[%clk 0:00:43]} 25. Kb1 {[%clk 0:01:31]}  Qc5 {[%clk 0:00:36]} 26. h6 {[%clk 0:01:24]}  gxh6 {[%clk 0:00:11]} 27. Bxf7+ {[%clk 0:01:17]}  Kg7 {[%clk 0:00:06]} 28. Rd7 {[%clk 0:01:11]}  Rxf7 {[%clk 0:00:02]} 29. Rxf7+ {[%clk 0:01:03]}  Kh8 {[%clk 0:00:01]} 30. Qe6 {[%clk 0:01:00]} 1-0


[Site "https://www.chess.com"]